bitfinex/quotes_BTCUSD_20230403
["timestamp","ask_amount","ask_price","bid_price","bid_amount"]
[1680510217526,0.3774,28333.0,28327.0,0.70039418]
[1680510217752,0.58664833,28334.0,28328.0,0.0353]
[1680510217753,0.80572333,28332.0,28328.0,0.0353]
[1680510217974,0.07334836,28332.0,28328.0,0.12373]
[1680510218163,0.07334836,28332.0,28328.0,0.00018]
[1680510218417,0.27788,28336.0,28328.0,0.01771]
[1680510218642,0.41130597,28335.0,28329.0,0.14197487]
[1680510218866,0.0085,28335.0,28329.0,0.17727287]
[1680510219089,0.45924836,28335.0,28329.0,0.15962387]
[1680510219325,0.45942836,28335.0,28329.0,0.017649]
[1680510219591,0.045688,28334.0,28329.0,0.15962387]
[1680510219814,0.045688,28334.0,28327.0,0.70039418]
[1680510219815,0.73237497,28333.0,28327.0,0.70039418]
[1680510220048,0.45924836,28332.0,28327.0,0.70021418]
[1680510220266,0.81422333,28332.0,28329.0,0.017649]
[1680510220495,0.74087497,28332.0,28329.0,0.017649]
[1680510220725,0.36347497,28332.0,28329.0,0.017649]
[1680510220947,0.00018,28333.0,28329.0,0.017649]
[1680510220948,0.00018,28333.0,28329.0,0.51459884]
[1680510221172,0.003,28341.0,28332.0,0.2]
[1680510221173,0.00018,28338.0,28332.0,0.2]
[1680510221364,0.00018,28340.0,28333.0,0.39491487]
[1680510221591,0.35497497,28337.0,28333.0,0.35962087]
[1680510221868,0.3774,28336.0,28334.0,0.2]
[1680510222086,0.35497497,28335.0,28334.0,0.2]
[1680510222315,0.35515497,28335.0,28334.0,0.2]
[1680510222541,0.36365497,28335.0,28333.0,0.00018]
[1680510222731,0.36365497,28335.0,28332.0,1.5]
[1680510222732,0.3859,28334.0,28332.0,1.5]
[1680510223015,0.74105497,28334.0,28332.0,1.5]
[1680510223464,0.35497497,28333.0,28332.0,1.5]
[1680510223694,0.74105497,28333.0,28332.0,1.5]
[1680510224799,0.78588597,28333.0,28332.0,1.5]
[1680510225261,0.78588597,28333.0,28328.0,0.2]
[1680510225262,0.3774,28331.0,28328.0,0.00018]
[1680510225484,0.3774,28331.0,28323.0,0.2]
[1680510225485,1.18568497,28329.0,28323.0,0.2]
[1680510225743,0.3774,28327.0,28323.0,0.198]
[1680510225980,0.3774,28325.0,28323.0,0.198]
[1680510226208,0.78640197,28324.0,28323.0,0.198]
[1680510226431,0.78640197,28324.0,28322.0,0.022]
[1680510226432,0.78658197,28324.0,28322.0,0.022]
[1680510226653,0.599461,28323.0,28322.0,0.022]
[1680510226883,0.00218,28323.0,28322.0,0.022]
[1680510227079,0.95059097,28323.0,28322.0,0.022]
[1680510227561,0.419076,28323.0,28322.0,0.022]
[1680510228216,0.77405097,28323.0,28322.0,0.022]
[1680510228436,0.77405097,28323.0,28322.0,0.020668]
[1680510229557,0.77423097,28323.0,28322.0,0.020668]
[1680510230221,0.95076097,28323.0,28322.0,0.020668]
[1680510230445,0.77423097,28323.0,28322.0,0.020668]
[1680510230971,0.79198097,28323.0,28322.0,0.020668]
[1680510231414,0.79216097,28323.0,28322.0,0.020668]
[1680510231634,0.79198097,28323.0,28322.0,0.020668]
[1680510231854,0.79216097,28323.0,28322.0,0.020668]
[1680510233163,0.428686,28323.0,28322.0,0.020668]
[1680510233376,0.76573097,28323.0,28322.0,0.020668]
[1680510234113,0.76555097,28323.0,28322.0,0.020668]
[1680510234302,0.76573097,28323.0,28322.0,0.020668]
[1680510234795,0.419256,28323.0,28322.0,0.020668]
[1680510235016,0.419076,28323.0,28322.0,0.020668]
[1680510235239,0.419256,28323.0,28322.0,0.020668]
[1680510235464,0.033356,28323.0,28322.0,0.020668]
[1680510235685,0.00018,28328.0,28327.0,0.2]
[1680510235908,0.00018,28334.0,28327.0,0.41848587]
[1680510236122,0.35497497,28333.0,28328.0,0.14197487]
[1680510236390,0.35515497,28333.0,28329.0,0.017649]
[1680510236619,0.3774,28332.0,28330.0,0.14197487]
[1680510236849,0.3774,28332.0,28329.0,0.017649]
[1680510236850,0.37758,28332.0,28329.0,0.017649]
[1680510237071,0.3774,28331.0,28327.0,0.2]
[1680510237312,0.37758,28331.0,28329.0,0.017649]
[1680510237974,0.035272,28330.0,28327.0,0.2]
[1680510238198,0.73255497,28331.0,28328.0,0.01765]
[1680510238425,0.034206,28330.0,28328.0,0.01765]
[1680510239108,0.37758,28331.0,28328.0,0.01765]
[1680510239327,0.00018,28331.0,28328.0,0.01765]
[1680510239558,0.00018,28333.0,28330.0,0.2]
[1680510239808,0.00018,28335.0,28331.0,0.052945]
[1680510240029,0.00018,28335.0,28334.0,0.2]
[1680510240254,0.35497497,28335.0,28332.0,0.00018]
[1680510240476,0.76644797,28334.0,28331.0,0.2]
[1680510240704,0.73255497,28334.0,28331.0,0.2]
[1680510240923,0.73255497,28334.0,28331.0,0.217648]
[1680510241170,0.37758,28334.0,28331.0,0.217648]
[1680510241399,0.0085,28333.0,28331.0,0.217648]
[1680510241850,0.00018,28336.0,28332.0,0.023827]
[1680510242092,0.3774,28338.0,28333.0,0.252941]
[1680510242324,0.3774,28337.0,28334.0,0.14197487]
[1680510242508,0.3774,28337.0,28333.0,0.252941]
[1680510242509,0.37758,28337.0,28333.0,0.235294]
[1680510242780,0.37758,28337.0,28334.0,0.017646]
[1680510243702,0.0085,28336.0,28335.0,0.2]
[1680510243927,0.3774,28335.0,28332.0,0.00018]
[1680510244153,0.044335,28336.0,28332.0,0.00018]
[1680510244154,0.00868,28336.0,28335.0,0.2]
[1680510244378,0.00018,28336.0,28335.0,0.217646]
[1680510244603,0.00018,28336.0,28332.0,0.035475]
[1680510244841,0.0085,28337.0,28335.0,0.2]
[1680510245079,0.3774,28336.0,28332.0,0.035295]
[1680510245313,0.3774,28334.0,28329.0,0.344243]
[1680510245531,0.3774,28334.0,28330.0,0.017648]
[1680510245532,0.3774,28332.0,28330.0,0.017648]
[1680510245756,0.3774,28332.0,28331.0,0.2]
[1680510246003,0.3774,28332.0,28331.0,0.20018]
[1680510246268,0.94252766,28332.0,28329.0,0.344243]
[1680510246503,0.55389,28330.0,28329.0,0.344063]
[1680510246720,0.95078997,28330.0,28329.0,0.344063]
[1680510248059,0.57320997,28330.0,28329.0,0.344243]
[1680510248281,0.0085,28330.0,28329.0,0.361892]
[1680510248509,0.30018,28338.0,28331.0,0.2]
[1680510248746,0.30018,28338.0,28333.0,0.017647]
[1680510248747,0.35497497,28337.0,28333.0,0.017647]
[1680510248972,0.35497497,28337.0,28334.0,0.14197487]
[1680510248973,0.034152,28336.0,28334.0,0.14197487]
[1680510249201,0.034152,28336.0,28332.0,0.00018]
[1680510249202,0.3774,28334.0,28332.0,0.00018]
[1680510249428,0.3774,28334.0,28331.0,0.20018]
[1680510249429,0.413512,28333.0,28331.0,0.20018]
[1680510249658,0.421709,28332.0,28331.0,0.20018]
[1680510249878,0.77668397,28332.0,28331.0,0.20018]
[1680510250717,0.77668397,28332.0,28331.0,0.00018]
[1680510250942,0.77668397,28332.0,28330.0,0.00018]
[1680510251162,0.76615097,28331.0,28326.0,0.017831]
[1680510251409,0.73237497,28331.0,28330.0,0.2]
[1680510251643,0.73237497,28331.0,28329.0,0.00018]
[1680510251644,1.04200607,28331.0,28329.0,0.00018]
[1680510251880,0.3774,28329.0,28327.0,0.00018]
[1680510252104,0.034322,28328.0,28327.0,0.00018]
[1680510252343,0.420222,28328.0,28327.0,0.00018]
[1680510252580,0.77519697,28328.0,28327.0,0.00018]
[1680510253523,0.420222,28328.0,28327.0,0.00018]
[1680510253995,0.0085,28328.0,28327.0,0.017831]
[1680510254223,0.00018,28333.0,28329.0,0.2]
[1680510254484,0.27643,28339.0,28329.0,0.2]
[1680510254485,1.62509367,28337.0,28330.0,0.15962387]
[1680510254710,1.3049907,28336.0,28330.0,0.15962387]
[1680510254957,0.3774,28334.0,28330.0,0.15962387]
[1680510255208,0.76796,28333.0,28331.0,0.2]
[1680510255434,0.76796,28333.0,28331.0,0.20018]
[1680510255435,0.034185,28332.0,28331.0,0.20018]
[1680510255672,0.42008403,28332.0,28331.0,0.20018]
[1680510256146,0.1,28339.0,28331.0,0.20018]
[1680510256147,0.00018,28336.0,28335.0,0.2]
[1680510256367,0.35497497,28340.0,28339.0,0.2]
[1680510256828,0.39005697,28340.0,28339.0,0.34215487]
[1680510256829,0.39005697,28340.0,28339.0,0.20018]
[1680510257048,0.76745697,28340.0,28339.0,0.00018]
[1680510257275,0.76745697,28340.0,28337.0,0.20018]
[1680510257514,0.76745697,28340.0,28337.0,0.00018]
[1680510257515,0.55385,28338.0,28337.0,0.00018]
[1680510257750,0.94518697,28338.0,28334.0,0.00018]
[1680510258000,0.94518697,28338.0,28333.0,0.00018]
[1680510258001,0.3774,28336.0,28333.0,0.00018]
[1680510258271,0.3774,28334.0,28333.0,0.00018]
[1680510258514,0.412663,28334.0,28333.0,0.00018]
[1680510258731,0.421163,28334.0,28333.0,0.00018]
[1680510259837,0.421163,28334.0,28330.0,0.017648]
[1680510259838,0.77613797,28334.0,28330.0,0.217649]
[1680510260070,0.3774,28332.0,28330.0,0.217828]
[1680510260292,0.3859,28333.0,28330.0,0.217828]
[1680510260956,0.00018,28336.0,28335.0,0.2]
[1680510261184,0.003,28341.0,28339.0,0.2]
[1680510261424,0.003,28341.0,28340.0,0.21997787]
[1680510263012,0.003,28341.0,28340.0,0.078183]
[1680510267644,0.003,28341.0,28340.0,0.041755]
[1680510269005,0.003,28341.0,28340.0,0.07704]
[1680510269925,0.00164,28341.0,28340.0,0.07686]
[1680510270147,0.00164,28341.0,28340.0,0.041575]
[1680510270377,0.73401497,28341.0,28339.0,0.2]
[1680510270601,0.39704197,28340.0,28339.0,0.2]
[1680510270825,0.39722197,28340.0,28339.0,0.2]
[1680510271048,0.042247,28340.0,28339.0,0.2]
[1680510271272,0.0085,28340.0,28339.0,0.2]
[1680510273320,0.0085,28340.0,28339.0,0.217643]
[1680510273545,0.00182,28341.0,28339.0,0.35961787]
[1680510273546,0.00164,28341.0,28339.0,0.35961787]
[1680510273764,0.9318058,28346.0,28342.0,0.2]
[1680510273982,0.9318058,28346.0,28345.0,0.2]
[1680510274200,0.9318058,28346.0,28345.0,0.41783887]
[1680510274201,0.9319858,28346.0,28345.0,0.41783887]
[1680510274422,0.9318058,28346.0,28345.0,0.276044]
[1680510275079,0.9318058,28346.0,28345.0,0.63101897]
[1680510275941,0.9318058,28346.0,28345.0,0.276044]
[1680510276421,0.9318058,28346.0,28345.0,0.63101897]
[1680510277827,0.9318058,28346.0,28345.0,0.80741597]
[1680510278053,0.9318058,28346.0,28345.0,0.452441]
[1680510278275,0.9318058,28346.0,28345.0,0.276044]
[1680510279860,0.9318058,28346.0,28345.0,0.63101897]
[1680510281005,0.9318058,28346.0,28345.0,0.276044]
[1680510282575,0.9318058,28346.0,28345.0,0.63101897]
[1680510283236,0.9403058,28346.0,28345.0,0.276044]
[1680510283450,0.9403058,28346.0,28345.0,0.076044]
[1680510283671,0.9403058,28346.0,28345.0,0.253098]
[1680510284141,0.9318058,28346.0,28345.0,0.217819]
[1680510284401,0.9318058,28346.0,28345.0,0.239574]
[1680510285544,0.9318058,28346.0,28345.0,0.74254897]
[1680510286437,0.9318058,28346.0,28345.0,0.94254897]
[1680510288728,0.9318058,28346.0,28345.0,0.54254897]
[1680510288961,0.9318058,28346.0,28345.0,0.387574]
[1680510289184,0.9318058,28346.0,28345.0,0.239574]
[1680510290325,1.3092058,28346.0,28345.0,0.221935]
[1680510290528,1.3177058,28346.0,28345.0,0.00018]
[1680510290783,1.3177058,28346.0,28345.0,0.017639]
[1680510291023,0.9318058,28346.0,28345.0,0.217639]
[1680510291247,0.9318058,28346.0,28345.0,0.242075]
[1680510291704,0.9318058,28346.0,28345.0,0.241932]
[1680510291939,0.9318058,28346.0,28345.0,0.217819]
[1680510292156,0.9318058,28346.0,28345.0,0.240802]
[1680510292375,0.9318058,28346.0,28345.0,0.217819]
[1680510292615,0.9318058,28346.0,28345.0,0.242644]
[1680510293346,0.9318058,28346.0,28345.0,0.00018]
[1680510293347,1.3177058,28346.0,28345.0,0.00018]
[1680510293572,0.9403058,28346.0,28345.0,0.217639]
[1680510293796,0.9403058,28346.0,28345.0,0.241736]
[1680510293987,0.9403058,28346.0,28345.0,0.217819]
[1680510294237,1.3092058,28346.0,28345.0,0.217819]
[1680510294456,1.3177058,28346.0,28345.0,0.217819]
[1680510294676,0.9318058,28346.0,28345.0,0.217819]
[1680510294893,0.9318058,28346.0,28345.0,0.2413]
[1680510295128,0.9318058,28346.0,28345.0,0.217819]
[1680510295560,0.93170264,28346.0,28345.0,0.241077]
[1680510295769,0.93170264,28346.0,28345.0,0.217819]
[1680510295989,0.93170264,28346.0,28345.0,0.20018]
[1680510296220,0.93170264,28346.0,28345.0,0.2]
[1680510296445,1.382451,28346.0,28345.0,0.2]
[1680510296693,1.31760264,28346.0,28345.0,0.2]
[1680510297790,1.74592597,28346.0,28344.0,0.00018]
[1680510298034,0.95124297,28345.0,28342.0,0.20018]
[1680510298262,0.3774,28343.0,28342.0,0.2]
[1680510298496,0.77394897,28343.0,28342.0,0.20018]
[1680510298717,0.77394897,28343.0,28342.0,0.2]
[1680510299384,0.77412897,28343.0,28340.0,0.2]
[1680510299603,0.77412897,28343.0,28340.0,0.19256]
[1680510299604,0.3774,28341.0,28340.0,0.19256]
[1680510299826,0.76587897,28341.0,28340.0,0.1925]
[1680510300073,0.77437897,28341.0,28340.0,0.1925]
[1680510300300,0.00018,28342.0,28340.0,0.35211687]
[1680510300565,0.3774,28345.0,28344.0,0.1925]
[1680510300783,0.3774,28345.0,28344.0,0.35211487]
[1680510300784,0.37758,28345.0,28344.0,0.35211487]
[1680510301000,0.37758,28345.0,28344.0,0.21014]
[1680510301217,0.3774,28345.0,28344.0,0.21014]
[1680510301656,0.3859,28345.0,28344.0,0.21032]
[1680510302120,0.93188264,28346.0,28344.0,0.21032]
[1680510302340,0.93170264,28346.0,28344.0,0.21014]
[1680510302788,0.93170264,28346.0,28345.0,0.35497497]
[1680510303018,0.93170264,28346.0,28345.0,0.50241697]
[1680510303260,0.93170264,28346.0,28345.0,0.65171697]
[1680510303480,0.93170264,28346.0,28345.0,0.75171697]
[1680510303956,0.83170264,28346.0,28345.0,1.12911697]
[1680510304178,0.12578664,28346.0,28345.0,1.22806605]
[1680510304415,0.00018,28351.0,28349.0,0.7699]
[1680510304637,0.00985884,28355.0,28354.0,0.3925]
[1680510304865,0.01003884,28355.0,28354.0,0.68281087]
[1680510305310,0.01003884,28355.0,28354.0,0.540836]
[1680510305536,0.00985884,28355.0,28354.0,0.540836]
[1680510305759,0.01003884,28355.0,28354.0,0.540836]
[1680510306195,0.01003884,28355.0,28354.0,0.89581097]
[1680510306418,0.01003884,28355.0,28354.0,0.340836]
[1680510308250,0.01003884,28355.0,28354.0,0.69581097]
[1680510308926,0.01003884,28355.0,28354.0,0.84441097]
[1680510312257,0.00985884,28355.0,28354.0,0.84441097]
[1680510312484,0.00985884,28355.0,28354.0,1.87449397]
[1680510312937,5.884e-05,28355.0,28354.0,1.87449397]
[1680510313408,5.884e-05,28355.0,28354.0,1.97449397]
[1680510313614,5.884e-05,28355.0,28354.0,2.02773209]
[1680510313842,5.884e-05,28355.0,28354.0,2.06303209]
[1680510315250,5.884e-05,28355.0,28354.0,1.96303209]
[1680510315694,5.884e-05,28355.0,28354.0,2.06303209]
[1680510316361,5.884e-05,28355.0,28354.0,1.58563209]
[1680510316591,5.884e-05,28355.0,28354.0,1.25033209]
[1680510317928,5.884e-05,28355.0,28354.0,1.55033209]
[1680510318372,5.884e-05,28355.0,28354.0,1.92773209]
[1680510320243,5.884e-05,28355.0,28354.0,2.25528866]
[1680510320476,0.0242,28359.0,28357.0,0.7699]
[1680510320693,0.0242,28359.0,28357.0,1.89697197]
[1680510320928,0.0242,28359.0,28358.0,0.0241]
[1680510321187,0.0242,28363.0,28362.0,0.8052]
[1680510321411,0.0242,28363.0,28362.0,2.42636384]
[1680510321852,0.0242,28363.0,28362.0,2.28438897]
[1680510322802,0.0001,28363.0,28362.0,2.28438897]
[1680510323506,0.0001,28363.0,28362.0,2.24908897]
[1680510323990,0.0001,28363.0,28362.0,2.26695546]
[1680510324216,0.0001,28363.0,28362.0,2.36695546]
[1680510324440,0.0242,28373.0,28369.0,0.5699]
[1680510324668,0.0242,28373.0,28369.0,1.53918984]
[1680510324890,0.02438,28373.0,28369.0,1.41508146]
[1680510325114,0.0242,28373.0,28369.0,1.41508146]
[1680510325336,0.0242,28373.0,28369.0,1.01981497]
[1680510325577,0.0242,28373.0,28369.0,1.03768146]
[1680510325805,0.0242,28373.0,28369.0,0.87051497]
[1680510326248,0.0242,28373.0,28369.0,1.39651497]
[1680510326475,0.0242,28373.0,28369.0,1.41438146]
[1680510326937,0.0242,28373.0,28369.0,1.39651497]
[1680510327166,0.0242,28373.0,28369.0,1.01911497]
[1680510327383,0.0242,28373.0,28369.0,0.84286697]
[1680510327636,0.02438,28373.0,28369.0,0.84286697]
[1680510328094,0.02438,28373.0,28369.0,0.86073346]
[1680510328303,0.02438,28373.0,28369.0,1.23813346]
[1680510328534,0.0242,28373.0,28369.0,1.53813346]
[1680510329200,0.0242,28373.0,28369.0,1.52026697]
[1680510329420,0.0242,28373.0,28369.0,1.53813346]
[1680510329881,0.0242,28373.0,28369.0,1.63813346]
[1680510330077,0.0242,28373.0,28372.0,0.5699]
[1680510330378,0.0242,28373.0,28372.0,1.39696297]
[1680510330608,0.0242,28373.0,28372.0,1.41482946]
[1680510333309,0.0242,28373.0,28372.0,1.71482946]
[1680510333310,0.0142,28373.0,28372.0,1.71482946]
[1680510333541,0.08754836,28373.0,28372.0,0.91429487]
[1680510333780,0.0142,28373.0,28372.0,0.39649497]
[1680510334088,1.9568,28378.0,28375.0,0.1925]
[1680510334089,0.00018,28377.0,28375.0,0.1925]
[1680510334670,0.3774,28383.0,28376.0,0.023183]
[1680510334671,0.20928,28383.0,28376.0,0.023183]
[1680510334902,0.1,28384.0,28377.0,0.15959387]
[1680510335132,0.0085,28383.0,28379.0,0.017618]
[1680510335359,0.0085,28383.0,28379.0,0.15959287]
[1680510335588,0.0085,28383.0,28379.0,0.017798]
[1680510335822,0.1,28384.0,28379.0,0.23006687]
[1680510336047,0.1,28385.0,28379.0,0.14215487]
[1680510336270,0.1,28385.0,28380.0,0.035235]
[1680510336490,0.1,28385.0,28380.0,0.19482687]
[1680510336717,0.37758,28386.0,28380.0,0.19482687]
[1680510336943,0.3774,28386.0,28380.0,0.19482687]
[1680510337398,0.0085,28385.0,28380.0,0.19482687]
[1680510337622,0.0085,28385.0,28380.0,0.052852]
[1680510337895,0.0188,28387.0,28380.0,0.54980184]
[1680510338117,0.0085,28386.0,28381.0,0.36695787]
[1680510338340,0.35497497,28385.0,28382.0,0.021641]
[1680510338563,0.3774,28384.0,28379.0,0.00018]
[1680510338786,0.45924836,28384.0,28379.0,0.017798]
[1680510339002,0.45924836,28384.0,28379.0,0.017618]
[1680510339476,0.35497497,28383.0,28379.0,0.017618]
[1680510339697,0.0085,28382.0,28379.0,0.017798]
[1680510339927,0.3774,28380.0,28375.0,0.00018]
[1680510340154,0.3774,28380.0,28371.0,0.00018]
[1680510340155,0.3774,28375.0,28371.0,0.00018]
[1680510340408,0.1491,28372.0,28371.0,0.017623]
[1680510340629,0.1491,28372.0,28369.0,0.035249]
[1680510340630,0.07334836,28372.0,28369.0,0.035249]
[1680510340854,0.07334836,28371.0,28370.0,0.017623]
[1680510341081,0.07334836,28372.0,28367.0,0.00018]
[1680510341300,0.07334836,28371.0,28369.0,0.017624]
[1680510341530,0.5267,28375.0,28370.0,0.2]
[1680510341531,0.00018,28375.0,28370.0,0.2]
[1680510341770,0.0085,28377.0,28372.0,0.2]
[1680510341993,0.0085,28377.0,28373.0,0.15959687]
[1680510342264,0.37758,28379.0,28374.0,0.49694984]
[1680510342265,0.00018,28379.0,28374.0,0.49694984]
[1680510342465,0.1492,28382.0,28375.0,0.147117]
[1680510342684,0.14828,28386.0,28376.0,0.49694984]
[1680510342912,1.26796185,28385.0,28379.0,0.052855]
[1680510343137,0.034595,28384.0,28380.0,0.14197487]
[1680510343388,0.37377497,28387.0,28380.0,0.00018]
[1680510343389,0.1492,28383.0,28380.0,0.00018]
[1680510343636,0.1492,28383.0,28379.0,0.00018]
[1680510343894,0.1492,28383.0,28380.0,0.217617]
[1680510344143,0.1492,28383.0,28380.0,0.217797]
[1680510344363,0.1438,28385.0,28380.0,0.217797]
[1680510344580,0.1438,28385.0,28380.0,0.35977187]
[1680510344801,0.1438,28385.0,28381.0,0.14197487]
[1680510345019,0.1438,28385.0,28382.0,0.052849]
[1680510345501,0.3774,28384.0,28382.0,0.017796]
[1680510345718,0.1438,28385.0,28382.0,0.017616]
[1680510347520,0.1438,28385.0,28384.0,0.2]
[1680510347741,0.0188,28387.0,28386.0,0.2]
[1680510347957,0.0188,28387.0,28386.0,0.63069697]
[1680510348177,0.0188,28387.0,28386.0,0.275722]
[1680510348391,0.0188,28387.0,28386.0,0.00018]
[1680510348611,0.0188,28387.0,28384.0,0.00018]
[1680510348842,0.0188,28387.0,28383.0,0.017795]
[1680510349269,0.0188,28387.0,28382.0,0.0370191]
[1680510349270,0.01898,28387.0,28382.0,0.0370191]
[1680510349505,0.97962023,28386.0,28382.0,0.0194031]
[1680510349729,0.97962023,28386.0,28380.0,0.0194031]
[1680510349730,0.5188,28384.0,28380.0,0.0194031]
[1680510349948,0.59214836,28384.0,28381.0,0.017617]
[1680510350191,0.00018,28384.0,28380.0,0.0370201]
[1680510350419,0.00018,28385.0,28380.0,0.0370201]
[1680510350675,0.37088,28385.0,28380.0,0.0370201]
[1680510350895,0.00018,28385.0,28380.0,0.0370201]
[1680510351109,0.37088,28385.0,28380.0,0.0370201]
[1680510351328,0.37088,28385.0,28381.0,0.00037387]
[1680510351329,0.07352836,28385.0,28381.0,0.00037387]
[1680510351552,0.00018,28385.0,28381.0,0.01798987]
[1680510352465,0.44422836,28385.0,28381.0,0.00037387]
[1680510352694,0.5199,28382.0,28381.0,0.00037387]
[1680510352918,0.5199,28382.0,28381.0,0.03739397]
[1680510352919,0.034464,28382.0,28381.0,0.03739397]
[1680510353142,0.19511,28387.0,28381.0,0.00037387]
[1680510353409,0.1805969,28382.0,28381.0,0.00037387]
[1680510353632,0.2155369,28382.0,28381.0,0.00037387]
[1680510354073,0.2157169,28382.0,28381.0,0.00037387]
[1680510354508,0.03512,28382.0,28378.0,0.035237]
[1680510354740,0.00018,28382.0,28380.0,0.017617]
[1680510354963,0.00868,28384.0,28380.0,0.0370201]
[1680510355183,0.033843,28383.0,28380.0,0.0370201]
[1680510355398,0.033843,28383.0,28380.0,0.017617]
[1680510355616,0.00868,28384.0,28380.0,0.017617]
[1680510356297,0.1805969,28382.0,28375.0,0.0194031]
[1680510356524,0.07334836,28381.0,28376.0,0.35497497]
[1680510356739,0.07334836,28381.0,28377.0,0.017619]
[1680510356957,0.1807769,28382.0,28377.0,0.017619]
[1680510357610,0.034854,28381.0,28376.0,0.03739732]
[1680510357838,0.07352836,28381.0,28376.0,0.03739832]
[1680510358054,0.00018,28382.0,28376.0,0.03739832]
[1680510358265,0.07352836,28382.0,28376.0,0.17937319]
[1680510358493,0.3707,28380.0,28373.0,0.0195831]
[1680510358719,0.11723836,28379.0,28375.0,0.017621]
[1680510358945,0.08184836,28379.0,28375.0,0.017621]
[1680510359161,0.0085,28379.0,28375.0,0.017621]
[1680510359377,0.0085,28380.0,28375.0,0.017621]
[1680510359892,0.00018,28380.0,28375.0,0.017621]
[1680510360569,1.27670384,28381.0,28375.0,0.017621]
[1680510360786,0.00018,28381.0,28375.0,0.15959587]
[1680510361008,1.70501504,28381.0,28375.0,0.15959587]
[1680510361229,0.034071,28380.0,28375.0,0.15959587]
[1680510361453,0.00018,28380.0,28375.0,0.017621]
[1680510361713,0.00018,28380.0,28375.0,0.088105]
[1680510363006,0.00868,28381.0,28376.0,0.0194031]
[1680510363222,0.37088,28382.0,28377.0,0.0166866]
[1680510363445,0.3707,28380.0,28376.0,0.0194031]
[1680510363673,0.00018,28382.0,28378.0,0.017619]
[1680510363893,0.5199,28383.0,28378.0,0.15959387]
[1680510364112,1.67523513,28382.0,28378.0,0.14197487]
[1680510364333,1.67523513,28382.0,28376.0,0.0194031]
[1680510364334,0.033847,28381.0,28376.0,0.0194031]
[1680510364555,0.3792,28382.0,28378.0,0.017618]
[1680510364779,0.3792,28382.0,28376.0,0.0194031]
[1680510364780,0.035243,28381.0,28376.0,0.0194031]
[1680510365055,0.07334836,28380.0,28376.0,0.0194031]
[1680510365284,0.83511533,28379.0,28372.0,0.0195831]
[1680510365511,0.3707,28373.0,28372.0,0.00018]
[1680510365738,0.3707,28373.0,28370.0,0.017803]
[1680510365739,0.47713736,28373.0,28370.0,0.017803]
[1680510365974,0.1493,28374.0,28368.0,0.00018]
[1680510365975,0.5188,28371.0,28368.0,0.00018]
[1680510366207,0.5188,28371.0,28365.0,0.0194031]
[1680510366208,0.52,28369.0,28365.0,0.0194031]
[1680510366444,0.52,28369.0,28363.0,0.02206]
[1680510366445,0.1805969,28364.0,28363.0,0.02206]
[1680510366672,0.1805969,28364.0,28357.0,0.02218]
[1680510366673,0.5512969,28361.0,28357.0,0.02218]
[1680510366910,0.69623,28358.0,28357.0,0.022]
[1680510367143,0.767945,28358.0,28357.0,0.022]
[1680510367371,0.767945,28358.0,28352.0,0.02208]
[1680510367372,1.45739857,28358.0,28352.0,0.0219]
[1680510367623,0.52,28353.0,28352.0,0.0219]
[1680510367856,0.1805969,28352.0,28345.0,0.0194031]
[1680510368077,0.1492,28346.0,28345.0,0.0194031]
[1680510368308,0.25876236,28346.0,28345.0,0.0194031]
[1680510368752,0.185414,28346.0,28345.0,0.0194031]
[1680510369468,0.54038897,28346.0,28345.0,0.0194031]
[1680510369690,0.91958897,28346.0,28345.0,0.0194031]
[1680510369913,0.185414,28346.0,28345.0,0.0194031]
[1680510370159,0.193914,28346.0,28345.0,0.0194031]
[1680510370383,0.193914,28346.0,28343.0,0.00018]
[1680510370619,0.193914,28346.0,28338.0,0.035288]
[1680510370620,0.3707,28343.0,28339.0,0.00018]
[1680510370847,0.5199,28339.0,28338.0,0.0194031]
[1680510371074,0.63714936,28339.0,28338.0,0.0195831]
[1680510371296,0.99212433,28339.0,28338.0,0.0194031]
[1680510371523,1.09520597,28339.0,28338.0,0.0194031]
[1680510372197,1.09520597,28339.0,28336.0,0.022]
[1680510372428,0.5188,28337.0,28336.0,0.022]
[1680510372700,0.552367,28337.0,28336.0,0.022]
[1680510372893,0.90734197,28337.0,28336.0,0.022]
[1680510373115,1.08379197,28337.0,28336.0,0.022]
[1680510373372,1.09229197,28337.0,28336.0,0.022]
[1680510373611,1.20795419,28337.0,28336.0,0.022]
[1680510373838,0.560867,28337.0,28336.0,0.022]
[1680510374749,1.09228197,28337.0,28336.0,0.022]
[1680510374974,0.91584197,28337.0,28336.0,0.022]
[1680510375243,0.560867,28337.0,28336.0,0.022]
[1680510375699,0.91584197,28337.0,28336.0,0.022]
[1680510376365,0.91584197,28337.0,28336.0,0.02188]
[1680510376815,0.560867,28337.0,28336.0,0.02188]
[1680510377289,0.033567,28337.0,28336.0,0.039525]
[1680510377517,0.1493,28342.0,28336.0,0.039525]
[1680510377518,0.14948,28342.0,28336.0,0.02188]
[1680510377753,0.1493,28342.0,28341.0,0.0194031]
[1680510377975,0.033569,28342.0,28341.0,0.0194031]
[1680510378198,0.3707,28344.0,28341.0,0.0192567]
[1680510378425,0.3707,28344.0,28343.0,0.0191367]
[1680510378651,0.405248,28344.0,28343.0,0.0191367]
[1680510378870,0.405248,28344.0,28340.0,0.017642]
[1680510379123,0.3707,28344.0,28343.0,0.0191367]
[1680510379592,0.3707,28344.0,28339.0,0.00018]
[1680510379593,0.98672897,28344.0,28339.0,0.00018]
[1680510379822,0.3707,28339.0,28337.0,0.0369607]
[1680510380051,0.14948,28340.0,28338.0,0.017644]
[1680510380275,0.00018,28342.0,28338.0,0.017644]
[1680510380508,0.1481,28343.0,28338.0,0.017644]
[1680510380736,0.1481,28343.0,28342.0,0.0191367]
[1680510380991,0.1481,28343.0,28342.0,0.16111157]
[1680510380992,0.035363,28343.0,28342.0,0.16111157]
[1680510381222,0.00018,28345.0,28342.0,0.0191367]
[1680510381454,0.1493,28346.0,28345.0,0.0191367]
[1680510381455,0.52,28346.0,28345.0,0.0191367]